[Event "*** SCC Grand Prix: Titled Tuesday Blitz"]
[Site "Chess.com"]
[Date "2020.07.21"]
[Round "3"]
[White "szachuspl"]
[Black "Ramil_Faizrakhmanov"]
[Result "1-0"]
[WhiteElo "2554"]
[BlackElo "2786"]
[TimeControl "180+1"]
[EndTime "10:28:53 PDT"]
[Termination "szachuspl won by resignation"]

1. d4 {[%clk 0:03:00.9]} 1... Nf6 {[%clk 0:02:59.3]} 2. c4 {[%clk 0:03:00.4]}
2... e6 {[%clk 0:02:59.5]} 3. Nf3 {[%clk 0:03:00.6]} 3... b6 {[%clk 0:02:59.4]}
4. g3 {[%clk 0:03:00.3]} 4... Ba6 {[%clk 0:02:59.6]} 5. Qc2 {[%clk 0:03:00.5]}
5... Bb7 {[%clk 0:02:56.9]} 6. Bg2 {[%clk 0:03:00.5]} 6... Bb4+ {[%clk
0:02:57.5]} 7. Nbd2 {[%clk 0:03:00]} 7... c5 {[%clk 0:02:55.7]} 8. dxc5 {[%clk
0:02:59.9]} 8... Bxc5 {[%clk 0:02:55.5]} 9. O-O {[%clk 0:02:59.4]} 9... O-O
{[%clk 0:02:55.6]} 10. Nb3 {[%clk 0:02:58.3]} 10... Be7 {[%clk 0:02:55.1]} 11.
Nbd4 {[%clk 0:02:50.4]} 11... d6 {[%clk 0:02:53.3]} 12. Rd1 {[%clk 0:02:49.5]}
12... a6 {[%clk 0:02:52.8]} 13. b3 {[%clk 0:02:47.1]} 13... Qc7 {[%clk
0:02:52.9]} 14. Bb2 {[%clk 0:02:45.4]} 14... Nbd7 {[%clk 0:02:53]} 15. Rac1
{[%clk 0:02:44.5]} 15... Rac8 {[%clk 0:02:53]} 16. Qb1 {[%clk 0:02:44.7]} 16...
Qb8 {[%clk 0:02:53.1]} 17. Qa1 {[%clk 0:02:44.9]} 17... Rfe8 {[%clk 0:02:53]}
18. e3 {[%clk 0:02:42.2]} 18... Qa8 {[%clk 0:02:52.9]} 19. Nh4 {[%clk
0:02:39.9]} 19... Bxg2 {[%clk 0:02:52.4]} 20. Nxg2 {[%clk 0:02:40.2]} 20... Qb7
{[%clk 0:02:53.1]} 21. h3 {[%clk 0:02:34.5]} 21... h6 {[%clk 0:02:53.2]} 22. Qb1
{[%clk 0:02:18.8]} 22... b5 {[%clk 0:02:52.7]} 23. cxb5 {[%clk 0:02:17.8]} 23...
axb5 {[%clk 0:02:53.6]} 24. Qd3 {[%clk 0:02:15.8]} 24... b4 {[%clk 0:02:32]} 25.
Qb5 {[%clk 0:02:13.4]} 25... Qxb5 {[%clk 0:02:26.4]} 26. Nxb5 {[%clk 0:02:13.3]}
26... d5 {[%clk 0:02:26.9]} 27. Nf4 {[%clk 0:02:10.8]} 27... Rxc1 {[%clk
0:02:22.9]} 28. Rxc1 {[%clk 0:02:10.3]} 28... Ra8 {[%clk 0:02:23.2]} 29. Ra1
{[%clk 0:02:08.4]} 29... Ne4 {[%clk 0:02:16.6]} 30. Nd3 {[%clk 0:02:04.2]} 30...
Ra5 {[%clk 0:02:04.9]} 31. Nd4 {[%clk 0:02:00.9]} 31... Ra6 {[%clk 0:02:05]} 32.
Nc2 {[%clk 0:01:57.6]} 32... Rb6 {[%clk 0:01:52.8]} 33. Kg2 {[%clk 0:01:54.3]}
33... g5 {[%clk 0:01:52.7]} 34. f3 {[%clk 0:01:53.7]} 34... Nec5 {[%clk
0:01:40.2]} 35. Ndxb4 {[%clk 0:01:34.4]} 35... Nxb3 {[%clk 0:01:40.4]} 36. Nxd5
{[%clk 0:01:31.1]} 36... Nxa1 {[%clk 0:01:27]} 37. Nxb6 {[%clk 0:01:29.9]} 37...
Nxc2 {[%clk 0:01:25.2]} 38. Nxd7 {[%clk 0:01:29.8]} 38... Nxe3+ {[%clk
0:01:25.5]} 39. Kg1 {[%clk 0:01:25.4]} 39... Nc4 {[%clk 0:01:21]} 40. Bd4 {[%clk
0:01:21.9]} 40... f5 {[%clk 0:01:11.1]} 41. Kf2 {[%clk 0:01:20]} 41... Bd6
{[%clk 0:01:09.4]} 42. g4 {[%clk 0:01:17]} 42... Kf7 {[%clk 0:01:07.4]} 43. Ke2
{[%clk 0:01:12.2]} 43... Ke7 {[%clk 0:01:06.5]} 44. Nb6 {[%clk 0:01:11.7]} 44...
Nxb6 {[%clk 0:00:35.8]} 45. Bxb6 {[%clk 0:01:11.4]} 45... Kd7 {[%clk 0:00:36.2]}
46. Kd3 {[%clk 0:01:09.2]} 46... Kc6 {[%clk 0:00:35.4]} 47. Bd4 {[%clk
0:01:09.2]} 47... Bf8 {[%clk 0:00:33.9]} 48. Kc4 {[%clk 0:01:07.1]} 48... Be7
{[%clk 0:00:11.4]} 49. Bg7 {[%clk 0:00:54.3]} 49... fxg4 {[%clk 0:00:07]} 50.
hxg4 {[%clk 0:00:51.4]} 50... Kd6 {[%clk 0:00:07.5]} 51. Kd4 {[%clk 0:00:46.1]}
51... Bd8 {[%clk 0:00:05.1]} 52. Bxh6 {[%clk 0:00:41.2]} 52... e5+ {[%clk
0:00:03.3]} 53. Ke4 {[%clk 0:00:41.4]} 53... Ke6 {[%clk 0:00:02.9]} 54. Bf8
{[%clk 0:00:38.5]} 54... Ba5 {[%clk 0:00:02.2]} 55. Bc5 {[%clk 0:00:37]} 55...
Bc3 {[%clk 0:00:02.5]} 56. Be3 {[%clk 0:00:36.8]} 56... Kf6 {[%clk 0:00:01.7]}
57. Bb6 {[%clk 0:00:36.7]} 57... Ke6 {[%clk 0:00:01.8]} 58. a4 {[%clk
0:00:36.8]} 58... Kd6 {[%clk 0:00:02.2]} 59. Kf5 {[%clk 0:00:35.3]} 1-0

[Event "*** SCC Grand Prix: Titled Tuesday Blitz"]
[Site "Chess.com"]
[Date "2020.07.21"]
[Round "3"]
[White "Danfii"]
[Black "SiddharthGMJagadeesh"]
[Result "1-0"]
[WhiteElo "2357"]
[BlackElo "2555"]
[TimeControl "180+1"]
[EndTime "10:28:53 PDT"]
[Termination "Danfii won by checkmate"]

1. e4 {[%clk 0:03:00.9]} 1... c6 {[%clk 0:02:59.9]} 2. d4 {[%clk 0:03:00.5]}
2... d5 {[%clk 0:03:00.2]} 3. e5 {[%clk 0:03:00.9]} 3... Bf5 {[%clk 0:02:58.9]}
4. Nf3 {[%clk 0:03:00.8]} 4... e6 {[%clk 0:02:59]} 5. Be2 {[%clk 0:03:00.8]}
5... Ne7 {[%clk 0:02:59.3]} 6. O-O {[%clk 0:03:00.7]} 6... Ng6 {[%clk
0:02:59.8]} 7. Nbd2 {[%clk 0:03:00.8]} 7... Nd7 {[%clk 0:02:58.9]} 8. Nb3 {[%clk
0:03:01]} 8... f6 {[%clk 0:02:58]} 9. exf6 {[%clk 0:02:59.4]} 9... Qxf6 {[%clk
0:02:58.9]} 10. a4 {[%clk 0:02:48.2]} 10... Bd6 {[%clk 0:02:56.5]} 11. Bd2
{[%clk 0:02:35.8]} 11... O-O {[%clk 0:02:55.5]} 12. c4 {[%clk 0:02:34.7]} 12...
Be4 {[%clk 0:02:53.4]} 13. Bg5 {[%clk 0:02:17.7]} 13... Qf7 {[%clk 0:02:51.3]}
14. Nbd2 {[%clk 0:02:14]} 14... h6 {[%clk 0:02:40]} 15. Be3 {[%clk 0:02:10.6]}
15... Nf6 {[%clk 0:02:39.7]} 16. Nxe4 {[%clk 0:02:03.2]} 16... Nxe4 {[%clk
0:02:40.6]} 17. Bd3 {[%clk 0:01:55.9]} 17... Nf4 {[%clk 0:02:36.3]} 18. Bxe4
{[%clk 0:01:20.3]} 18... dxe4 {[%clk 0:02:37.2]} 19. Nd2 {[%clk 0:01:20.8]}
19... Qg6 {[%clk 0:02:25.7]} 20. g3 {[%clk 0:01:15.2]} 20... Nd3 {[%clk
0:02:21]} 21. Qc2 {[%clk 0:00:52.7]} 21... Rf3 {[%clk 0:01:34.6]} 22. Nxf3
{[%clk 0:00:51.8]} 22... exf3 {[%clk 0:01:35.5]} 23. Rfd1 {[%clk 0:00:42.9]}
23... Nf4 {[%clk 0:01:31.1]} 24. Qxg6 {[%clk 0:00:42.3]} 24... Nxg6 {[%clk
0:01:32]} 25. d5 {[%clk 0:00:40.5]} 25... exd5 {[%clk 0:01:27.7]} 26. cxd5
{[%clk 0:00:41.2]} 26... c5 {[%clk 0:01:28.6]} 27. a5 {[%clk 0:00:37.2]} 27...
Ne5 {[%clk 0:01:24.7]} 28. Bf4 {[%clk 0:00:33.9]} 28... g5 {[%clk 0:01:24]} 29.
Bxe5 {[%clk 0:00:30]} 29... Bxe5 {[%clk 0:01:24.9]} 30. Ra3 {[%clk 0:00:28.7]}
30... g4 {[%clk 0:01:20.3]} 31. Rb3 {[%clk 0:00:28.3]} 31... Bd4 {[%clk
0:01:16.7]} 32. Rxb7 {[%clk 0:00:26.9]} 32... Rd8 {[%clk 0:01:16]} 33. Kf1
{[%clk 0:00:18.5]} 33... a6 {[%clk 0:00:59.8]} 34. b4 {[%clk 0:00:18.3]} 34...
Re8 {[%clk 0:00:53.7]} 35. Re1 {[%clk 0:00:13]} 35... Rd8 {[%clk 0:00:45.6]} 36.
bxc5 {[%clk 0:00:11.7]} 36... Bxc5 {[%clk 0:00:46.5]} 37. Rd1 {[%clk 0:00:11.4]}
37... Re8 {[%clk 0:00:41.2]} 38. Rb2 {[%clk 0:00:10.6]} 38... Bd6 {[%clk
0:00:39.6]} 39. Rc2 {[%clk 0:00:10.2]} 39... Bb8 {[%clk 0:00:21.7]} 40. Rc6
{[%clk 0:00:09.6]} 40... Re2 {[%clk 0:00:19.6]} 41. d6 {[%clk 0:00:08.4]} 41...
Ba7 {[%clk 0:00:19.8]} 42. Rb6 {[%clk 0:00:08.8]} 42... Bxb6 {[%clk 0:00:18.4]}
43. axb6 {[%clk 0:00:09.7]} 43... Re8 {[%clk 0:00:18.2]} 44. d7 {[%clk
0:00:09.2]} 44... Rd8 {[%clk 0:00:18.6]} 45. b7 {[%clk 0:00:09.8]} 45... Kf7
{[%clk 0:00:19.3]} 46. b8=Q {[%clk 0:00:09.8]} 46... Rxb8 {[%clk 0:00:19.6]} 47.
d8=Q {[%clk 0:00:10.7]} 47... Rxd8 {[%clk 0:00:20.4]} 48. Rxd8 {[%clk
0:00:10.8]} 48... Ke7 {[%clk 0:00:21.1]} 49. Ra8 {[%clk 0:00:11.6]} 49... h5
{[%clk 0:00:20.5]} 50. Rxa6 {[%clk 0:00:11.6]} 50... Kf7 {[%clk 0:00:21.4]} 51.
Rh6 {[%clk 0:00:09.2]} 51... Kg7 {[%clk 0:00:21.7]} 52. Rxh5 {[%clk 0:00:09]}
52... Kg6 {[%clk 0:00:22.6]} 53. Ra5 {[%clk 0:00:09.3]} 53... Kf6 {[%clk
0:00:22.8]} 54. Ke1 {[%clk 0:00:09.4]} 54... Kg6 {[%clk 0:00:23.3]} 55. Kd2
{[%clk 0:00:10.3]} 55... Kf6 {[%clk 0:00:24.2]} 56. Ke3 {[%clk 0:00:11.2]} 56...
Ke6 {[%clk 0:00:25]} 57. Kf4 {[%clk 0:00:12.1]} 57... Kf6 {[%clk 0:00:25.9]} 58.
Kxg4 {[%clk 0:00:13]} 58... Kg6 {[%clk 0:00:26.8]} 59. Kxf3 {[%clk 0:00:13.9]}
59... Kf6 {[%clk 0:00:27.7]} 60. Kf4 {[%clk 0:00:14.8]} 60... Kg6 {[%clk
0:00:28.6]} 61. h4 {[%clk 0:00:15.7]} 61... Kf6 {[%clk 0:00:29.2]} 62. h5 {[%clk
0:00:16.6]} 62... Kg7 {[%clk 0:00:29]} 63. Kg5 {[%clk 0:00:17]} 63... Kg8 {[%clk
0:00:29.5]} 64. Kg6 {[%clk 0:00:17.2]} 64... Kf8 {[%clk 0:00:30.4]} 65. h6
{[%clk 0:00:16.9]} 65... Ke7 {[%clk 0:00:31.3]} 66. h7 {[%clk 0:00:17.2]} 66...
Kd6 {[%clk 0:00:32.2]} 67. h8=Q {[%clk 0:00:17.4]} 67... Kc6 {[%clk 0:00:33.1]}
68. Qf6+ {[%clk 0:00:17.4]} 68... Kb7 {[%clk 0:00:32.6]} 69. Rb5+ {[%clk
0:00:17.2]} 69... Ka7 {[%clk 0:00:32.5]} 70. Qb6+ {[%clk 0:00:16.9]} 70... Ka8
{[%clk 0:00:33.4]} 71. Ra5# {[%clk 0:00:17.8]} 1-0

[Event "*** SCC Grand Prix: Titled Tuesday Blitz"]
[Site "Chess.com"]
[Date "2020.07.21"]
[Round "3"]
[White "Chessmasterzt"]
[Black "nrvisakh"]
[Result "0-1"]
[WhiteElo "2588"]
[BlackElo "2837"]
[TimeControl "180+1"]
[EndTime "10:28:54 PDT"]
[Termination "nrvisakh won on time"]

1. d4 {[%clk 0:03:00.9]} 1... Nf6 {[%clk 0:02:53.2]} 2. Nf3 {[%clk 0:02:56.2]}
2... g6 {[%clk 0:02:47.6]} 3. c4 {[%clk 0:02:56.3]} 3... Bg7 {[%clk 0:02:47.3]}
4. Nc3 {[%clk 0:02:56.8]} 4... d5 {[%clk 0:02:46.8]} 5. cxd5 {[%clk 0:02:43.4]}
5... Nxd5 {[%clk 0:02:47.7]} 6. Qb3 {[%clk 0:02:43]} 6... Nxc3 {[%clk
0:02:34.8]} 7. bxc3 {[%clk 0:02:43.9]} 7... O-O {[%clk 0:02:34.9]} 8. Bf4 {[%clk
0:02:36.2]} 8... c5 {[%clk 0:02:30.8]} 9. e3 {[%clk 0:02:36.4]} 9... Nc6 {[%clk
0:02:29.7]} 10. Be2 {[%clk 0:02:27.4]} 10... cxd4 {[%clk 0:02:29.3]} 11. cxd4
{[%clk 0:02:27.8]} 11... Qa5+ {[%clk 0:02:26.2]} 12. Nd2 {[%clk 0:02:27.5]}
12... e5 {[%clk 0:02:22.8]} 13. dxe5 {[%clk 0:02:28.4]} 13... Nxe5 {[%clk
0:02:16.7]} 14. Rd1 {[%clk 0:02:22.1]} 14... Be6 {[%clk 0:02:14.1]} 15. Qxb7
{[%clk 0:02:17.8]} 15... Bd5 {[%clk 0:02:08.5]} 16. Qa6 {[%clk 0:02:16.8]} 16...
Qxa6 {[%clk 0:01:57.9]} 17. Bxa6 {[%clk 0:02:17.7]} 17... Bxg2 {[%clk
0:01:58.1]} 18. Rg1 {[%clk 0:02:16.1]} 18... Bd5 {[%clk 0:01:58.4]} 19. Rg5
{[%clk 0:01:51.6]} 19... Rfe8 {[%clk 0:01:37.4]} 20. Bxe5 {[%clk 0:01:47.4]}
20... Rxe5 {[%clk 0:01:26.3]} 21. Rxe5 {[%clk 0:01:46.9]} 21... Bxe5 {[%clk
0:01:27.2]} 22. Nc4 {[%clk 0:01:46.7]} 22... Bc3+ {[%clk 0:01:18.2]} 23. Ke2
{[%clk 0:01:46.5]} 23... Be6 {[%clk 0:01:17]} 24. a4 {[%clk 0:01:01.2]} 24...
Rb8 {[%clk 0:01:15.5]} 25. Rc1 {[%clk 0:00:53.3]} 25... Bf6 {[%clk 0:01:13.8]}
26. f3 {[%clk 0:00:43.6]} 26... Rb4 {[%clk 0:01:11.9]} 27. Bb5 {[%clk
0:00:40.1]} 27... a6 {[%clk 0:01:11.3]} 28. Bxa6 {[%clk 0:00:38]} 28... Rxa4
{[%clk 0:01:11.3]} 29. Bb5 {[%clk 0:00:37.5]} 29... Ra2+ {[%clk 0:01:11]} 30.
Nd2 {[%clk 0:00:34.6]} 30... Rb2 {[%clk 0:01:02.6]} 31. Bc4 {[%clk 0:00:33.4]}
31... Bf5 {[%clk 0:01:02.6]} 32. Bd3 {[%clk 0:00:30.9]} 32... Bd7 {[%clk
0:00:58]} 33. Rb1 {[%clk 0:00:29.3]} 33... Rxb1 {[%clk 0:00:48.4]} 34. Bxb1
{[%clk 0:00:28]} 34... Be7 {[%clk 0:00:43]} 35. f4 {[%clk 0:00:23.3]} 35... Kg7
{[%clk 0:00:42.2]} 36. Be4 {[%clk 0:00:22.4]} 36... Bd6 {[%clk 0:00:40.4]} 37.
Bf3 {[%clk 0:00:20.4]} 37... h6 {[%clk 0:00:38]} 38. Be4 {[%clk 0:00:19.1]}
38... g5 {[%clk 0:00:36.7]} 39. Kf3 {[%clk 0:00:19.3]} 39... f5 {[%clk
0:00:35.1]} 40. Bd5 {[%clk 0:00:18.9]} 40... Kf6 {[%clk 0:00:34.6]} 41. Nc4
{[%clk 0:00:17]} 41... Bc7 {[%clk 0:00:34.6]} 42. Nd2 {[%clk 0:00:15.7]} 42...
Bb5 {[%clk 0:00:33.4]} 43. Bc4 {[%clk 0:00:14.2]} 43... Bc6+ {[%clk 0:00:33.6]}
44. Kg3 {[%clk 0:00:14.5]} 44... h5 {[%clk 0:00:33.7]} 45. Nf3 {[%clk
0:00:10.6]} 45... h4+ {[%clk 0:00:27.7]} 46. Kf2 {[%clk 0:00:10.9]} 46... gxf4
{[%clk 0:00:27.3]} 47. exf4 {[%clk 0:00:11.5]} 47... Bb6+ {[%clk 0:00:21.7]} 48.
Ke2 {[%clk 0:00:10.4]} 48... h3 {[%clk 0:00:21.3]} 49. Bd3 {[%clk 0:00:04.8]}
49... Ba7 {[%clk 0:00:11.4]} 50. Bc4 {[%clk 0:00:04.1]} 50... Bb7 {[%clk
0:00:11]} 51. Bd3 {[%clk 0:00:04.3]} 51... Bc6 {[%clk 0:00:11.2]} 52. Bc2 {[%clk
0:00:02.9]} 52... Bb5+ {[%clk 0:00:10.7]} 53. Bd3 {[%clk 0:00:03.2]} 53... Be8
{[%clk 0:00:10.7]} 54. Bc2 {[%clk 0:00:02.7]} 54... Bh5 {[%clk 0:00:10.7]} 0-1

[Event "*** SCC Grand Prix: Titled Tuesday Blitz"]
[Site "Chess.com"]
[Date "2020.07.21"]
[Round "3"]
[White "26andrej26"]
[Black "MendozaDavid2000"]
[Result "1/2-1/2"]
[WhiteElo "2518"]
[BlackElo "2288"]
[TimeControl "180+1"]
[EndTime "10:28:55 PDT"]
[Termination "Game drawn by agreement"]

1. e4 {[%clk 0:00:39.3]} 1... c5 {[%clk 0:02:45.8]} 2. Nf3 {[%clk 0:00:39.3]}
2... d6 {[%clk 0:02:45.3]} 3. d4 {[%clk 0:00:40]} 3... cxd4 {[%clk 0:02:44.6]}
4. Nxd4 {[%clk 0:00:40.9]} 4... Nf6 {[%clk 0:02:44.9]} 5. Nc3 {[%clk 0:00:41.6]}
5... a6 {[%clk 0:02:45]} 6. Bc4 {[%clk 0:00:42.2]} 6... e6 {[%clk 0:02:42.8]} 7.
Bb3 {[%clk 0:00:42.6]} 7... Qc7 {[%clk 0:02:42]} 8. g4 {[%clk 0:00:42.3]} 8...
Nc6 {[%clk 0:02:37.2]} 9. g5 {[%clk 0:00:41.9]} 9... Nxd4 {[%clk 0:02:33.8]} 10.
Qxd4 {[%clk 0:00:41.7]} 10... Nd7 {[%clk 0:02:31.2]} 11. Be3 {[%clk 0:00:41.8]}
11... Nc5 {[%clk 0:02:27.1]} 12. O-O-O {[%clk 0:00:41.9]} 12... Nxb3+ {[%clk
0:02:27]} 13. axb3 {[%clk 0:00:41.8]} 13... Bd7 {[%clk 0:02:27.2]} 14. Kb1
{[%clk 0:00:41.6]} 14... Bc6 {[%clk 0:01:48.8]} 15. f4 {[%clk 0:00:40.1]} 15...
e5 {[%clk 0:01:45.4]} 16. Qd3 {[%clk 0:00:34.1]} 16... Be7 {[%clk 0:01:42.8]}
17. f5 {[%clk 0:00:34.1]} 17... O-O-O {[%clk 0:01:33]} 18. Nd5 {[%clk
0:00:32.7]} 18... Bxd5 {[%clk 0:01:32.8]} 19. Qxd5 {[%clk 0:00:33.6]} 19... f6
{[%clk 0:01:20.6]} 20. Rd3 {[%clk 0:00:32.6]} 20... Kb8 {[%clk 0:01:11.2]} 21.
h4 {[%clk 0:00:32.6]} 21... Rc8 {[%clk 0:01:06.8]} 22. Rc1 {[%clk 0:00:32.5]}
22... Rhe8 {[%clk 0:01:00.1]} 23. c3 {[%clk 0:00:32]} 23... Qc6 {[%clk
0:00:57.1]} 24. b4 {[%clk 0:00:32.2]} 24... Qxd5 {[%clk 0:00:56.4]} 25. exd5
{[%clk 0:00:29.2]} 25... b5 {[%clk 0:00:56.4]} 26. b3 {[%clk 0:00:26.1]} 26...
Rf8 {[%clk 0:00:50]} 27. gxf6 {[%clk 0:00:24.2]} 27... Bxf6 {[%clk 0:00:49.3]}
28. c4 {[%clk 0:00:22.9]} 28... Bxh4 {[%clk 0:00:47]} 29. c5 {[%clk 0:00:19.5]}
29... Rxf5 {[%clk 0:00:40.2]} 30. Rh1 {[%clk 0:00:19.4]} 30... g5 {[%clk
0:00:39.5]} 31. c6 {[%clk 0:00:19.1]} 31... Kc7 {[%clk 0:00:37.7]} 32. Kc2
{[%clk 0:00:18.9]} 32... e4 {[%clk 0:00:34.1]} 33. Rd4 {[%clk 0:00:17.6]} 33...
Re8 {[%clk 0:00:33.9]} 34. Ra1 {[%clk 0:00:17.5]} 34... Ree5 {[%clk 0:00:31.2]}
35. Rxa6 {[%clk 0:00:17.1]} 35... Rxd5 {[%clk 0:00:31.6]} 36. Rxe4 {[%clk
0:00:16.7]} 36... Rfe5 {[%clk 0:00:29.7]} 37. Bb6+ {[%clk 0:00:11.3]} 37... Kxc6
{[%clk 0:00:29.2]} 38. Bd4+ {[%clk 0:00:11.2]} 38... Kb7 {[%clk 0:00:29.7]} 39.
Rb6+ {[%clk 0:00:11]} 39... Kc7 {[%clk 0:00:29.1]} 40. Bxe5 {[%clk 0:00:10.4]}
40... Kxb6 {[%clk 0:00:27.4]} 41. Bd4+ {[%clk 0:00:10.7]} 41... Kc6 {[%clk
0:00:26.6]} 42. Be3 {[%clk 0:00:08.9]} 42... Re5 {[%clk 0:00:25.9]} 43. Kd3
{[%clk 0:00:08.1]} 43... Rxe4 {[%clk 0:00:20.8]} 44. Kxe4 {[%clk 0:00:09]} 44...
h6 {[%clk 0:00:21.6]} 45. Kf5 {[%clk 0:00:09.2]} 45... Kd5 {[%clk 0:00:19.7]}
46. Kg6 {[%clk 0:00:09.6]} 46... Ke4 {[%clk 0:00:20.2]} 47. Bc1 {[%clk
0:00:07.8]} 47... d5 {[%clk 0:00:20.6]} 48. Kxh6 {[%clk 0:00:08.1]} 48... d4
{[%clk 0:00:21.1]} 49. Kh5 {[%clk 0:00:08.3]} 49... d3 {[%clk 0:00:21.3]} 50.
Kg4 {[%clk 0:00:08.6]} 50... Kd4 {[%clk 0:00:21.1]} 51. Bd2 {[%clk 0:00:08.2]}
51... Bf2 {[%clk 0:00:18.8]} 52. Kf3 {[%clk 0:00:08.2]} 52... Bg1 {[%clk
0:00:17.8]} 53. Bxg5 {[%clk 0:00:07.5]} 53... Kc3 {[%clk 0:00:17.3]} 54. Ke4
{[%clk 0:00:07.5]} 54... Kxb4 {[%clk 0:00:04.2]} 55. Kxd3 {[%clk 0:00:06.5]}
55... Kxb3 {[%clk 0:00:05.1]} 56. Be7 {[%clk 0:00:06.5]} 1/2-1/2

[Event "*** SCC Grand Prix: Titled Tuesday Blitz"]
[Site "Chess.com"]
[Date "2020.07.21"]
[Round "3"]
[White "2nd_life"]
[Black "TioCridineno"]
[Result "1-0"]
[WhiteElo "2480"]
[BlackElo "2180"]
[TimeControl "180+1"]
[EndTime "10:28:55 PDT"]
[Termination "2nd_life won by resignation"]

1. e4 {[%clk 0:03:00.9]} 1... c5 {[%clk 0:02:58.7]} 2. Nf3 {[%clk 0:03:00.8]}
2... d6 {[%clk 0:02:58.6]} 3. Bb5+ {[%clk 0:02:58.9]} 3... Bd7 {[%clk
0:02:56.2]} 4. c4 {[%clk 0:02:58.9]} 4... Nc6 {[%clk 0:02:54.4]} 5. Nc3 {[%clk
0:02:58.1]} 5... g6 {[%clk 0:02:54.4]} 6. d4 {[%clk 0:02:51.8]} 6... cxd4 {[%clk
0:02:53.7]} 7. Nxd4 {[%clk 0:02:52.7]} 7... Bg7 {[%clk 0:02:54.1]} 8. Be3 {[%clk
0:02:52.8]} 8... Nf6 {[%clk 0:02:54.1]} 9. f3 {[%clk 0:02:52.2]} 9... O-O {[%clk
0:02:53.9]} 10. O-O {[%clk 0:02:51.7]} 10... a6 {[%clk 0:02:52.8]} 11. Bxc6
{[%clk 0:02:51.6]} 11... bxc6 {[%clk 0:02:51.4]} 12. Qd2 {[%clk 0:02:51]} 12...
Rb8 {[%clk 0:02:45.8]} 13. b3 {[%clk 0:02:43.9]} 13... Qa5 {[%clk 0:02:45.3]}
14. Rac1 {[%clk 0:02:35.8]} 14... Rfd8 {[%clk 0:02:07.7]} 15. Rfd1 {[%clk
0:02:30.1]} 15... h5 {[%clk 0:02:01.6]} 16. Bg5 {[%clk 0:02:08.4]} 16... Be8
{[%clk 0:01:24.7]} 17. h4 {[%clk 0:01:57.7]} 17... Qb6 {[%clk 0:01:17.8]} 18.
Kh1 {[%clk 0:01:55.6]} 18... c5 {[%clk 0:00:55.2]} 19. Nde2 {[%clk 0:01:50.9]}
19... Bc6 {[%clk 0:00:55.2]} 20. Nf4 {[%clk 0:01:49]} 20... Qa5 {[%clk
0:00:50.5]} 21. Nfd5 {[%clk 0:01:22]} 21... Bxd5 {[%clk 0:00:45]} 22. Bxf6
{[%clk 0:01:15.8]} 22... Bxf6 {[%clk 0:00:32]} 23. Nxd5 {[%clk 0:01:13.4]} 23...
Qxd2 {[%clk 0:00:31.8]} 24. Nxf6+ {[%clk 0:01:13.4]} 24... exf6 {[%clk 0:00:32]}
25. Rxd2 {[%clk 0:01:13.6]} 25... Kf8 {[%clk 0:00:32.5]} 26. Rcd1 {[%clk
0:01:12.6]} 26... Ke7 {[%clk 0:00:32.8]} 27. Rd5 {[%clk 0:01:11.3]} 27... a5
{[%clk 0:00:31.2]} 28. f4 {[%clk 0:01:03]} 28... Rb6 {[%clk 0:00:21.2]} 29. e5
{[%clk 0:00:51.4]} 29... fxe5 {[%clk 0:00:20.8]} 30. fxe5 {[%clk 0:00:52.3]}
30... Rc6 {[%clk 0:00:21.2]} 31. Kh2 {[%clk 0:00:48.4]} 31... Ke6 {[%clk
0:00:21.2]} 32. Kg3 {[%clk 0:00:46]} 32... Rd7 {[%clk 0:00:21.6]} 33. Kf3 {[%clk
0:00:42.8]} 33... Rd8 {[%clk 0:00:19.5]} 34. Ke4 {[%clk 0:00:42]} 34... f5+
{[%clk 0:00:18.2]} 35. exf6 {[%clk 0:00:24.3]} 35... Kxf6 {[%clk 0:00:18]} 36.
Kf4 {[%clk 0:00:23.5]} 36... Ke6 {[%clk 0:00:14.9]} 37. R1d3 {[%clk 0:00:21]}
37... Rf8+ {[%clk 0:00:13.4]} 38. Kg5 {[%clk 0:00:19.4]} 38... Rf2 {[%clk
0:00:13.5]} 39. g3 {[%clk 0:00:19.4]} 39... Rxa2 {[%clk 0:00:13]} 40. Kxg6
{[%clk 0:00:19.3]} 40... a4 {[%clk 0:00:13.2]} 41. Rf5 {[%clk 0:00:06.8]} 41...
axb3 {[%clk 0:00:12.3]} 42. Re3+ {[%clk 0:00:06.9]} 42... Kd7 {[%clk 0:00:11.4]}
43. Rf7+ {[%clk 0:00:07.2]} 43... Kd8 {[%clk 0:00:11.8]} 44. Rxb3 {[%clk
0:00:07.6]} 44... d5+ {[%clk 0:00:10.8]} 45. Kxh5 {[%clk 0:00:07.7]} 45... dxc4
{[%clk 0:00:11.3]} 46. Rb8+ {[%clk 0:00:07.6]} 46... Rc8 {[%clk 0:00:10.6]} 47.
Rf8+ {[%clk 0:00:08.1]} 47... Kc7 {[%clk 0:00:09.6]} 48. Rfxc8+ {[%clk
0:00:08.6]} 48... Kd6 {[%clk 0:00:10.2]} 49. Rb6+ {[%clk 0:00:08.4]} 49... Kd5
{[%clk 0:00:10.4]} 50. Rd8+ {[%clk 0:00:08.5]} 50... Ke4 {[%clk 0:00:10.8]} 51.
Rc6 {[%clk 0:00:08.9]} 51... Ra5 {[%clk 0:00:10.4]} 52. Re6+ {[%clk 0:00:08.6]}
52... Kf3 {[%clk 0:00:09.8]} 53. Rf8+ {[%clk 0:00:08.8]} 53... Kg2 {[%clk
0:00:09.7]} 54. Re3 {[%clk 0:00:08.8]} 54... Rb5 {[%clk 0:00:08.3]} 55. Rc3
{[%clk 0:00:08.9]} 55... Rb4 {[%clk 0:00:08]} 56. Rf4 {[%clk 0:00:08.4]} 56...
Rb3 {[%clk 0:00:08]} 57. Rcxc4 {[%clk 0:00:07.3]} 57... Rxg3 {[%clk 0:00:07.2]}
58. Rg4 {[%clk 0:00:07]} 58... Rxg4 {[%clk 0:00:04.7]} 59. Kxg4 {[%clk
0:00:06.9]} 1-0